fUSD/lending_fUSD_20250526
["ID","MTS","AMOUNT","RATE_DAILY","PERIOD"]
[362449802,1748299840221,-201.91514792,0.00027386,2]
[362449803,1748299840230,-191404.544648,0.00027387,2]
[362449805,1748299840239,-192629.101212,0.00027387,2]
[362449807,1748299840249,-155.54,0.00027387,2]
[362449809,1748299840258,-215330.112729,0.00027387,2]
[362449811,1748299840267,-423784.022667,0.00027387,2]
[362449813,1748299840277,-169.55474893,0.00027397,3]
[362449815,1748299840286,-97728.88252455,0.00027397,3]
[362449817,1748299840298,-385.76888395,0.00027397,3]
[362449857,1748299842673,-441.18848038,0.00027397,3]
[362449858,1748299842686,-11134.87626,0.00027397,3]
[362449861,1748299845332,-629.04998635,0.00027397,3]
[362449862,1748299845363,-1693.69453452,0.00027397,3]
[362449863,1748299845388,-6535.50103635,0.00027397,3]
[362449864,1748299845613,-2002.1319934,0.00027397,3]
[362450253,1748300272302,155.41,0.00013699,2]
[362450255,1748300375842,250.0,0.00015,2]
[362450257,1748300593620,-1911.72,0.0002,2]
[362450258,1748300598869,-150.0,0.0002,2]
[362450824,1748301031750,-1188.04007198,0.0002,2]
[362450825,1748301031859,-255.49699607,0.0002,2]
[362451405,1748301037641,-2158.8910724,0.0002,2]
[362451406,1748301037652,-442.0,0.00022,2]
[362451407,1748301037662,-442.0,0.00022192,7]
[362451408,1748301037673,-442.0,0.00022466,7]
[362451409,1748301037683,-442.0,0.0002274,7]
[362451410,1748301037693,-442.0,0.00023014,7]
[362451411,1748301037703,-442.0,0.00023014,7]
[362451412,1748301037713,-215.29562906,0.000239,10]
[362451413,1748301037722,-457.0,0.00024164,7]
[362451415,1748301037731,-442.0,0.00024164,7]
[362451417,1748301037740,-365.49,0.00024245,2]
[362451419,1748301037750,-1200.0,0.0002513,2]
[362451421,1748301037760,-442.0,0.00025131,7]
[362451423,1748301037770,-442.0,0.00025315,7]
[362451425,1748301037780,-215.29562906,0.000257,13]
[362451427,1748301037791,-988.08839516,0.00026086,2]
[362451431,1748301037813,-11.91160484,0.00026086,2]
[362451432,1748301037823,-300.0,0.00026097,2]
[362451435,1748301037832,-442.0,0.00026098,7]
[362451437,1748301037842,-442.0,0.00026466,7]
[362451438,1748301037851,-365.49,0.00026509,2]
[362451440,1748301037861,-350.32883778,0.00026604,2]
[362451443,1748301037873,-724.06005491,0.00026604,2]
[362451483,1748301040096,-121.49110731,0.00026604,2]
[362451484,1748301040105,-888.986,0.00026829,14]
[362451485,1748301040115,-500.0,0.00026849,2]
[362451486,1748301040124,-994.43601787,0.00026882,2]
[362451487,1748301040135,-442.0,0.00027064,7]
[362451488,1748301040144,-420.0,0.000272,2]
[362451489,1748301040156,-206.0,0.00027222,2]
[362451490,1748301040166,-12340.1625444,0.00027277,2]
[362451491,1748301040175,-473.4933537,0.00027287,2]
[362451492,1748301040185,-163.75269402,0.00027287,2]
[362451493,1748301040195,-179.95016649,0.00027287,2]
[362451494,1748301040206,-182.01578444,0.00027287,2]
[362451495,1748301040216,-313.10949885,0.00027287,2]
[362451496,1748301040225,-12340.16254434,0.0002734,2]
[362451497,1748301040235,-1680.0,0.00027343,2]
[362451498,1748301040246,-152.59344608,0.0002735,2]
[362451499,1748301040255,-354.92097503,0.0002736,2]
[362451500,1748301040264,-500.0,0.00027373,2]
[362451501,1748301040274,-287.31637834,0.00027373,2]
[362451502,1748301040284,-500.0,0.00027373,2]
[362451503,1748301040293,-500.0,0.00027373,2]
[362451504,1748301040303,-500.0,0.00027373,2]
[362451505,1748301040312,-500.78382127,0.00027373,2]
[362451506,1748301040321,-500.0,0.00027373,2]
[362451507,1748301040331,-500.0,0.00027373,2]
[362451508,1748301040341,-500.0,0.00027373,2]
[362451509,1748301040351,-500.0,0.00027375,2]
[362451510,1748301040360,-500.0,0.00027375,2]
[362451511,1748301040369,-611.22231229,0.00027375,2]
[362451512,1748301040378,-71776.704243,0.00027376,2]
[362451513,1748301040388,-47851.136162,0.00027377,2]
[362451514,1748301040397,-201.91514792,0.00027386,2]
[362451515,1748301040406,-176.77422619,0.00027386,2]
[362451516,1748301040415,-162.1384242,0.00027386,2]
[362451517,1748301040424,-500.0,0.00027386,2]
[362451518,1748301040434,-173.73414502,0.00027386,2]
[362451519,1748301040444,-190.88290754,0.00027386,2]
[362451520,1748301040453,-191404.544648,0.00027387,2]
[362451521,1748301040463,-154103.28097,0.00027387,2]
[362451522,1748301040472,-239255.68081,0.00027387,2]
[362451523,1748301040482,-462309.84291,0.00027387,2]
[362451524,1748301040491,-155.54,0.00027387,2]
[362451525,1748301040501,-344.40336928,0.00027387,2]
[362451526,1748301040510,-4000.0,0.00027387,2]
[362451527,1748301040519,-420.00900216,0.00027387,2]
[362451528,1748301040529,-170.87,0.00027395,2]
[362451529,1748301040539,-151.822226,0.00027396,7]
[362451530,1748301040548,-151.0,0.00027396,7]
[362451531,1748301040558,-151.0,0.00027396,7]
[362451532,1748301040567,-151.0,0.00027396,7]
[362451533,1748301040576,-155.824089,0.00027396,7]
[362451534,1748301040586,-151.0,0.00027396,7]
[362451535,1748301040595,-151.0,0.00027396,7]
[362451536,1748301040605,-151.0,0.00027396,7]
[362451537,1748301040614,-151.0,0.00027396,7]
[362451538,1748301040623,-151.0,0.00027396,7]
[362451539,1748301040632,-151.0,0.00027396,7]
[362451540,1748301040642,-151.0,0.00027396,7]
[362451541,1748301040651,-173.129875,0.00027396,7]
[362451542,1748301040661,-151.0,0.00027396,7]
[362451543,1748301040670,-152.951142,0.00027396,7]
[362451544,1748301040679,-151.0,0.00027396,7]
[362451545,1748301040689,-154.073768,0.00027396,7]
[362451546,1748301040698,-151.0,0.00027396,7]
[362451547,1748301040708,-151.0,0.00027396,7]
[362451548,1748301040717,-151.0,0.00027396,7]
[362451549,1748301040727,-204.733338,0.00027396,7]
[362451550,1748301040737,-151.0,0.00027396,7]
[362451551,1748301040746,-150.0,0.00027396,2]
[362451552,1748301040755,-500.0,0.00027396,3]
[362451553,1748301040764,-151.0,0.00027396,7]
[362451554,1748301040774,-151.0,0.00027396,7]
[362451555,1748301040783,-150.0,0.00027396,3]
[362451556,1748301040792,-151.0,0.00027396,7]
[362451557,1748301040801,-497.390329,0.00027396,7]
[362451558,1748301040811,-497.390329,0.00027396,7]
[362451559,1748301040820,-155.259932,0.00027396,7]
[362451560,1748301040829,-151.0,0.00027396,7]
[362451561,1748301040838,-151.0,0.00027396,7]
[362451562,1748301040847,-151.0,0.00027396,7]
[362451563,1748301040857,-151.0,0.00027396,7]
[362451564,1748301040866,-151.0,0.00027396,7]
[362451565,1748301040875,-151.0,0.00027396,7]
[362451566,1748301040885,-151.0,0.00027396,7]
[362451567,1748301040894,-169.55474893,0.00027396,3]
[362451568,1748301040903,-52811.31839583,0.00027396,3]
[362451569,1748301040928,-396.95500012,0.00027396,3]
[362451570,1748301040939,-256.03236867,0.00027396,3]
[362451571,1748301041100,-640.08419563,0.00027396,3]
[362451572,1748301041112,-871.984808,0.00027396,3]
[362451573,1748301041124,-261937.12036021,0.00027396,3]
[362451574,1748301041188,-447.81768278,0.00027396,3]
[362451575,1748301041237,-541.97165858,0.00027396,3]
[362451587,1748301042671,-5629.67416054,0.00027287,2]
[362451590,1748301042774,-3572.12388907,0.00027287,2]
[362451591,1748301042783,-48328.29881436,0.00027396,3]
[362451592,1748301042793,-219.056512,0.00027397,2]
[362451593,1748301042803,-171.065218,0.00027397,2]
[362451594,1748301043062,-438.67175824,0.00027397,2]
[362451595,1748301043077,-420.0,0.00027397,2]
[362451596,1748301043087,-2244.97,0.00027397,2]
[362451597,1748301043096,-420.0,0.00027397,2]
[362451598,1748301043106,-420.0,0.00027397,2]
[362451599,1748301043115,-420.0,0.00027397,2]
[362451600,1748301043125,-420.0,0.00027397,2]
[362451601,1748301043134,-420.0,0.00027397,2]
[362451602,1748301043144,-420.0,0.00027397,2]
[362451603,1748301043157,-420.0,0.00027397,2]
[362451604,1748301043167,-420.0,0.00027397,2]
[362451605,1748301043176,-420.0,0.00027397,2]
[362451606,1748301043185,-420.0,0.00027397,2]
[362451607,1748301043195,-420.0,0.00027397,2]
[362451608,1748301043204,-420.0,0.00027397,2]
[362451609,1748301043213,-420.0,0.00027397,2]
[362451610,1748301043222,-420.0,0.00027397,2]
[362451611,1748301043233,-420.0,0.00027397,2]
[362451612,1748301043243,-420.0,0.00027397,2]
[362451613,1748301043253,-420.0,0.00027397,2]
[362451614,1748301043262,-420.0,0.00027397,2]
[362451615,1748301043272,-420.0,0.00027397,2]
[362451616,1748301043281,-151.0,0.00027397,7]
[362451617,1748301043291,-420.0,0.00027397,2]
[362451618,1748301043300,-420.0,0.00027397,2]
[362451619,1748301043309,-420.0,0.00027397,2]
[362451620,1748301043319,-420.0,0.00027397,2]
[362451621,1748301043328,-420.0,0.00027397,2]
[362451622,1748301043337,-2112.41,0.00027397,2]
[362451623,1748301043346,-2952.52,0.00027397,2]
[362451624,1748301043355,-420.0,0.00027397,2]
[362451625,1748301043365,-420.0,0.00027397,2]
[362451626,1748301043374,-420.0,0.00027397,2]
[362451627,1748301043383,-420.0,0.00027397,2]
[362451628,1748301043392,-420.0,0.00027397,2]
[362451629,1748301043402,-3233.15,0.00027397,2]
[362451630,1748301043411,-151.0,0.00027397,7]
[362451631,1748301043421,-2376.06,0.00027397,2]
[362451632,1748301043431,-151.0,0.00027397,7]
[362451633,1748301043440,-244.16987,0.00027397,7]
[362451634,1748301043449,-420.0,0.00027397,2]
[362451635,1748301043458,-423.57438146,0.00027397,2]
[362451636,1748301043468,-588.0,0.00027397,2]
[362451637,1748301043477,-420.0,0.00027397,2]
[362451638,1748301043486,-151.0,0.00027397,7]
[362451639,1748301043495,-151.0,0.00027397,7]
[362451640,1748301043505,-151.0,0.00027397,7]
[362451641,1748301043514,-420.0,0.00027397,2]
[362451642,1748301043523,-420.0,0.00027397,2]
[362451643,1748301043532,-420.0,0.00027397,2]
[362451644,1748301043542,-420.0,0.00027397,2]
[362451645,1748301043551,-364.97852943,0.00027397,2]
[362451646,1748301043560,-420.0,0.00027397,2]
[362451647,1748301043570,-151.0,0.00027397,7]
[362451648,1748301043579,-151.0,0.00027397,7]
[362451649,1748301043588,-420.0,0.00027397,2]
[362451650,1748301043598,-151.428329,0.00027397,7]
[362451651,1748301043607,-420.0,0.00027397,2]
[362451652,1748301043616,-424.65642555,0.00027397,2]
[362451653,1748301043625,-422.61117688,0.00027397,2]
[362451654,1748301043635,-420.0,0.00027397,2]
[362451655,1748301043644,-420.0,0.00027397,2]
[362451656,1748301043653,-420.0,0.00027397,2]
[362451657,1748301043662,-420.0,0.00027397,2]
[362451658,1748301043671,-420.0,0.00027397,2]
[362451659,1748301043680,-420.0,0.00027397,2]
[362451660,1748301043690,-420.0,0.00027397,2]
[362451661,1748301043699,-202.04373641,0.00027397,2]
[362451662,1748301043708,-420.0,0.00027397,2]
[362451663,1748301043717,-151.0,0.00027397,7]
[362451664,1748301043726,-550.200189,0.00027397,2]
[362451665,1748301043735,-420.0,0.00027397,2]
[362451666,1748301043744,-420.0,0.00027397,2]
[362451667,1748301043754,-420.0,0.00027397,2]
[362451668,1748301043762,-420.0,0.00027397,2]
[362451669,1748301043771,-286.96612151,0.00027397,2]
[362451670,1748301043781,-2373.32,0.00027397,2]
[362451671,1748301043790,-420.0,0.00027397,2]
[362451672,1748301043804,-420.0,0.00027397,2]
[362451673,1748301043813,-420.0,0.00027397,2]
[362451674,1748301043822,-420.0,0.00027397,2]
[362451675,1748301043832,-420.0,0.00027397,2]
[362451676,1748301043841,-420.0,0.00027397,2]
[362451677,1748301043851,-420.0,0.00027397,2]
[362451678,1748301043860,-420.0,0.00027397,2]
[362451679,1748301043869,-420.0,0.00027397,2]
[362451680,1748301043878,-420.0,0.00027397,2]
[362451681,1748301043888,-420.0,0.00027397,2]
[362451682,1748301043897,-504.0800828,0.00027397,2]
[362451683,1748301043907,-420.0,0.00027397,2]
[362451684,1748301043917,-420.0,0.00027397,2]
[362451685,1748301043926,-420.0,0.00027397,2]
[362451686,1748301043935,-420.0,0.00027397,2]
[362451687,1748301043947,-423.29332349,0.00027397,2]
[362451688,1748301043957,-420.0,0.00027397,2]
[362451689,1748301043967,-420.0,0.00027397,2]
[362451690,1748301043976,-420.0,0.00027397,2]
[362451691,1748301043986,-428.67980247,0.00027397,2]
[362451692,1748301043995,-420.0,0.00027397,2]
[362451693,1748301044005,-420.0,0.00027397,2]
[362451694,1748301044014,-420.0,0.00027397,2]
[362451695,1748301044024,-423.89286394,0.00027397,2]
[362451696,1748301044034,-420.0,0.00027397,2]
[362451697,1748301044044,-420.0,0.00027397,2]
[362451698,1748301044054,-277.865015,0.00027397,7]
[362451699,1748301044064,-549.67575482,0.00027397,2]
[362451700,1748301044074,-420.0,0.00027397,2]
[362451701,1748301044083,-420.0,0.00027397,2]
[362451702,1748301044093,-420.0,0.00027397,2]
[362451703,1748301044102,-425.05735511,0.00027397,2]
[362451704,1748301044112,-420.0,0.00027397,2]
[362451705,1748301044121,-420.0,0.00027397,2]
[362451706,1748301044131,-420.0,0.00027397,2]
[362451707,1748301044140,-420.0,0.00027397,2]
[362451708,1748301044150,-420.0,0.00027397,2]
[362451709,1748301044164,-422.8074332,0.00027397,2]
[362451710,1748301044174,-420.0,0.00027397,2]
[362451711,1748301044183,-421.2854905,0.00027397,2]
[362451712,1748301044193,-420.0,0.00027397,2]
[362451713,1748301044203,-420.0,0.00027397,2]
[362451714,1748301044212,-420.0,0.00027397,2]
[362451715,1748301044221,-420.0,0.00027397,2]
[362451716,1748301044232,-420.0,0.00027397,2]
[362451717,1748301044241,-3697.97,0.00027397,2]
[362451718,1748301044251,-235.58973935,0.00027397,2]
[362451719,1748301044261,-420.0,0.00027397,2]
[362451720,1748301044271,-420.0,0.00027397,2]
[362451721,1748301044281,-420.0,0.00027397,2]
[362451722,1748301044290,-420.0,0.00027397,2]
[362451723,1748301044300,-420.0,0.00027397,2]
[362451724,1748301044310,-420.0,0.00027397,2]
[362451725,1748301044319,-420.0,0.00027397,2]
[362451726,1748301044329,-423.68038599,0.00027397,2]
[362451727,1748301044338,-420.0,0.00027397,2]
[362451728,1748301044348,-424.94718109,0.00027397,2]
[362451729,1748301044357,-448.06021558,0.00027397,2]
[362451730,1748301044366,-420.0,0.00027397,2]
[362451731,1748301044376,-420.0,0.00027397,2]
[362451732,1748301044386,-420.0,0.00027397,2]
[362451733,1748301044396,-420.0,0.00027397,2]
[362451734,1748301044405,-420.0,0.00027397,2]
[362451735,1748301044414,-420.0,0.00027397,2]
[362451736,1748301044424,-151.0,0.00027397,7]
[362451737,1748301044433,-420.0,0.00027397,2]
[362451738,1748301044443,-420.0,0.00027397,2]
[362451739,1748301044452,-152.768893,0.00027397,7]
[362451740,1748301044462,-151.0,0.00027397,7]
[362451741,1748301044471,-151.0,0.00027397,7]
[362451742,1748301044481,-171.084706,0.00027397,7]
[362451743,1748301044490,-420.0,0.00027397,2]
[362451744,1748301044500,-451.35266211,0.00027397,2]
[362451745,1748301044510,-461.98829718,0.00027397,2]
[362451746,1748301044520,-476.29,0.00027397,2]
[362451747,1748301044529,-420.0,0.00027397,2]
[362451748,1748301044539,-420.0,0.00027397,2]
[362451749,1748301044548,-420.0,0.00027397,2]
[362451750,1748301044558,-420.0,0.00027397,2]
[362451751,1748301044567,-382.37141298,0.00027397,2]
[362451752,1748301044576,-420.0,0.00027397,2]
[362451753,1748301044586,-420.0,0.00027397,2]
[362451754,1748301044596,-420.0,0.00027397,2]
[362451755,1748301044605,-420.0,0.00027397,2]
[362451756,1748301044614,-420.0,0.00027397,2]
[362451757,1748301044624,-420.0,0.00027397,2]
[362451758,1748301044634,-420.0,0.00027397,2]
[362451759,1748301044643,-420.0,0.00027397,2]
[362451760,1748301044653,-302.91939755,0.00027397,2]
[362451761,1748301044662,-420.0,0.00027397,2]
[362451762,1748301044672,-420.0,0.00027397,2]
[362451763,1748301044682,-404.246519,0.00027397,2]
[362451764,1748301044692,-468.34,0.00027397,2]
[362451765,1748301044701,-420.0,0.00027397,2]
[362451766,1748301044710,-420.0,0.00027397,2]
[362451767,1748301044720,-420.0,0.00027397,2]
[362451768,1748301044730,-420.0,0.00027397,2]
[362451769,1748301044739,-290.17083271,0.00027397,2]
[362451770,1748301044749,-2457.41,0.00027397,2]
[362451771,1748301044758,-356.36705769,0.00027397,2]
[362451772,1748301044767,-420.0,0.00027397,2]
[362451773,1748301044777,-265.74,0.00027397,2]
[362451774,1748301044786,-420.0,0.00027397,2]
[362451775,1748301044795,-420.0,0.00027397,2]
[362451777,1748301044806,-420.0,0.00027397,2]
[362451779,1748301044816,-420.0,0.00027397,2]
[362451780,1748301044825,-422.8685605,0.00027397,2]
[362451781,1748301044834,-420.0,0.00027397,2]
[362451782,1748301044844,-420.0,0.00027397,2]
[362451783,1748301044854,-420.0,0.00027397,2]
[362451784,1748301044863,-420.0,0.00027397,2]
[362451785,1748301044873,-420.0,0.00027397,2]
[362451786,1748301044883,-420.0,0.00027397,2]
[362451787,1748301044892,-420.0,0.00027397,2]
[362451788,1748301044902,-350.42106449,0.00027397,2]
[362451789,1748301044911,-420.0,0.00027397,2]
[362451790,1748301044921,-153.725234,0.00027397,7]
[362451791,1748301044930,-420.0,0.00027397,2]
[362451792,1748301044940,-420.0,0.00027397,2]
[362451793,1748301044950,-420.0,0.00027397,2]
[362451794,1748301044960,-420.0,0.00027397,2]
[362451795,1748301044969,-402.42404384,0.00027397,2]
[362451796,1748301044979,-426.66922024,0.00027397,2]
[362451797,1748301044988,-420.0,0.00027397,2]
[362451798,1748301044998,-420.0,0.00027397,2]
[362451799,1748301045009,-3299.71,0.00027397,2]
[362451800,1748301045018,-420.0,0.00027397,2]
[362451801,1748301045027,-420.0,0.00027397,2]
[362451802,1748301045037,-420.0,0.00027397,2]
[362451803,1748301045046,-420.0,0.00027397,2]
[362451804,1748301045056,-420.0,0.00027397,2]
[362451805,1748301045065,-429.38572773,0.00027397,2]
[362451806,1748301045076,-420.0,0.00027397,2]
[362451807,1748301045085,-420.0,0.00027397,2]
[362451808,1748301045095,-420.0,0.00027397,2]
[362451809,1748301045104,-420.0,0.00027397,2]
[362451810,1748301045113,-420.0,0.00027397,2]
[362451811,1748301045123,-420.0,0.00027397,2]
[362451812,1748301045132,-420.0,0.00027397,2]
[362451813,1748301045142,-420.0,0.00027397,2]
[362451814,1748301045153,-420.0,0.00027397,2]
[362451815,1748301045164,-420.0,0.00027397,2]
[362451816,1748301045174,-420.0,0.00027397,2]
[362451817,1748301045183,-423.05615952,0.00027397,2]
[362451818,1748301045193,-2255.29,0.00027397,2]
[362451819,1748301045203,-420.0,0.00027397,2]
[362451820,1748301045213,-420.0,0.00027397,2]
[362451821,1748301045222,-420.0,0.00027397,2]
[362451822,1748301045231,-151.0,0.00027397,7]
[362451823,1748301045241,-151.0,0.00027397,7]
[362451824,1748301045251,-151.0,0.00027397,7]
[362451825,1748301045260,-420.0,0.00027397,2]
[362451826,1748301045269,-420.0,0.00027397,2]
[362451827,1748301045279,-156.376787,0.00027397,7]
[362451828,1748301045288,-420.0,0.00027397,2]
[362451829,1748301045298,-420.0,0.00027397,2]
[362451830,1748301045309,-420.0,0.00027397,2]
[362451831,1748301045318,-420.0,0.00027397,2]
[362451832,1748301045328,-420.0,0.00027397,2]
[362451833,1748301045338,-151.0,0.00027397,7]
[362451834,1748301045348,-151.0,0.00027397,7]
[362451835,1748301045358,-420.0,0.00027397,2]
[362451836,1748301045367,-420.0,0.00027397,2]
[362451837,1748301045377,-300.0,0.00027397,2]
[362451838,1748301045386,-420.0,0.00027397,2]
[362451839,1748301045395,-791.16,0.00027397,2]
[362451841,1748301045405,-429.30462305,0.00027397,2]
[362451842,1748301045415,-420.0,0.00027397,2]
[362451843,1748301045424,-420.0,0.00027397,2]
[362451844,1748301045433,-420.0,0.00027397,2]
[362451845,1748301045443,-420.0,0.00027397,2]
[362451846,1748301045452,-425.69119215,0.00027397,2]
[362451847,1748301045462,-420.0,0.00027397,2]
[362451848,1748301045471,-420.0,0.00027397,2]
[362451849,1748301045481,-420.0,0.00027397,2]
[362451850,1748301045491,-420.0,0.00027397,2]
[362451851,1748301045500,-420.0,0.00027397,2]
[362451852,1748301045510,-420.0,0.00027397,2]
[362451853,1748301045520,-420.0,0.00027397,2]
[362451854,1748301045529,-420.0,0.00027397,2]
[362451855,1748301045539,-420.0,0.00027397,2]
[362451856,1748301045549,-897.66,0.00027397,2]
[362451857,1748301045559,-420.0,0.00027397,2]
[362451858,1748301045568,-420.0,0.00027397,2]
[362451859,1748301045579,-420.0,0.00027397,2]
[362451860,1748301045588,-420.0,0.00027397,2]
[362451861,1748301045598,-420.0,0.00027397,2]
[362451862,1748301045613,-420.0,0.00027397,2]
[362451863,1748301045623,-420.0,0.00027397,2]
[362451864,1748301045633,-420.0,0.00027397,2]
[362451865,1748301045642,-420.0,0.00027397,2]
[362451866,1748301045653,-420.0,0.00027397,2]
[362451867,1748301045663,-420.0,0.00027397,2]
[362451868,1748301045673,-420.0,0.00027397,2]
[362451869,1748301045683,-420.0,0.00027397,2]
[362451870,1748301045694,-420.0,0.00027397,2]
[362451871,1748301045704,-420.0,0.00027397,2]
[362451872,1748301045715,-420.0,0.00027397,2]
[362451873,1748301045725,-420.0,0.00027397,2]
[362451874,1748301045736,-407.17991271,0.00027397,2]
[362451875,1748301045746,-1171.28,0.00027397,2]
[362451876,1748301045756,-507.92171606,0.00027397,2]
[362451877,1748301045766,-420.0,0.00027397,2]
[362451878,1748301045777,-420.0,0.00027397,2]
[362451879,1748301045789,-3223.15,0.00027397,2]
[362451880,1748301045799,-420.0,0.00027397,2]
[362451881,1748301045809,-420.0,0.00027397,2]
[362451882,1748301045818,-488.6003297,0.00027397,2]
[362451883,1748301045828,-420.0,0.00027397,2]
[362451884,1748301045838,-420.0,0.00027397,2]
[362451885,1748301045848,-417.74563232,0.00027397,2]
[362451886,1748301045858,-420.0,0.00027397,2]
[362451887,1748301045868,-420.0,0.00027397,2]
[362451888,1748301045878,-420.0,0.00027397,2]
[362451889,1748301045888,-827.94,0.00027397,2]
[362451890,1748301045898,-420.0,0.00027397,2]
[362451891,1748301045908,-1953.31,0.00027397,2]
[362451892,1748301045917,-420.0,0.00027397,2]
[362451893,1748301045927,-420.0,0.00027397,2]
[362451894,1748301045936,-151.0,0.00027397,7]
[362451895,1748301045946,-151.627626,0.00027397,7]
[362451896,1748301045956,-420.0,0.00027397,2]
[362451897,1748301045966,-420.0,0.00027397,2]
[362451898,1748301045976,-469.26436934,0.00027397,2]
[362451899,1748301045985,-420.0,0.00027397,2]
[362451900,1748301045995,-420.0,0.00027397,2]
[362451901,1748301046005,-420.0,0.00027397,2]
[362451902,1748301046015,-420.0,0.00027397,2]
[362451903,1748301046025,-420.0,0.00027397,2]
[362451904,1748301046034,-420.0,0.00027397,2]
[362451905,1748301046044,-420.0,0.00027397,2]
[362451906,1748301046053,-420.0,0.00027397,2]
[362451907,1748301046063,-420.0,0.00027397,2]
[362451908,1748301046073,-420.0,0.00027397,2]
[362451909,1748301046083,-2164.3,0.00027397,2]
[362451910,1748301046093,-151.0,0.00027397,7]
[362451911,1748301046102,-420.0,0.00027397,2]
[362451912,1748301046111,-2749.53,0.00027397,2]
[362451913,1748301046121,-420.0,0.00027397,2]
[362451914,1748301046130,-420.0,0.00027397,2]
[362451915,1748301046140,-420.0,0.00027397,2]
[362451916,1748301046151,-420.0,0.00027397,2]
[362451917,1748301046165,-170.98734729,0.00027397,2]
[362451918,1748301046217,-132.1472666,0.00027397,2]
[362451919,1748301046227,-420.0,0.00027397,2]
[362451920,1748301046238,-374.66178312,0.00027397,2]
[362451969,1748301046953,-2670.96821688,0.00027397,2]
[362451971,1748301046963,-420.0,0.00027397,2]
[362451973,1748301046973,-420.0,0.00027397,2]
[362451975,1748301046982,-500.0,0.00027397,2]
[362451976,1748301046991,-2241.2,0.00027397,2]
[362451978,1748301047001,-420.0,0.00027397,2]
[362451979,1748301047011,-420.0,0.00027397,2]
[362451981,1748301047020,-420.0,0.00027397,2]
[362451983,1748301047030,-420.0,0.00027397,2]
[362451984,1748301047040,-420.0,0.00027397,2]
[362451986,1748301047049,-420.0,0.00027397,2]
[362451988,1748301047059,-420.0,0.00027397,2]
[362451989,1748301047068,-420.0,0.00027397,2]
[362451991,1748301047077,-420.0,0.00027397,2]
[362451993,1748301047086,-250.0,0.00027397,2]
[362451994,1748301047096,-3267.93,0.00027397,2]
[362451996,1748301047105,-420.0,0.00027397,2]
[362451998,1748301047115,-420.0,0.00027397,2]
[362451999,1748301047125,-420.0,0.00027397,2]
[362452001,1748301047135,-220.84614271,0.00027397,2]
[362452003,1748301047144,-459.21783628,0.00027397,2]
[362452005,1748301047158,-420.0,0.00027397,2]
[362452006,1748301047168,-420.0,0.00027397,2]
[362452008,1748301047178,-420.0,0.00027397,2]
[362452010,1748301047187,-425.79227927,0.00027397,2]
[362452011,1748301047196,-420.0,0.00027397,2]
[362452013,1748301047206,-392.72951752,0.00027397,2]
[362452015,1748301047215,-420.0,0.00027397,2]
[362452016,1748301047225,-420.0,0.00027397,2]
[362452018,1748301047234,-420.0,0.00027397,2]
[362452020,1748301047243,-420.0,0.00027397,2]
[362452022,1748301047253,-420.0,0.00027397,2]
[362452023,1748301047262,-2179.43,0.00027397,2]
[362452025,1748301047271,-420.0,0.00027397,2]